bitfinex-derivatives/quotes_SOLF0:USTF0_20250416
["timestamp","ask_amount","ask_price","bid_price","bid_amount"]
[1744820535365,7.779,128.56,128.55,0.05976797]
[1744820537067,47.63416543,128.57,128.48,365.0]
[1744820537363,31.8,128.56,128.48,365.0]
[1744820537567,7.7803,128.54,128.51,7.7817]
[1744820537766,31.8,128.56,128.48,365.0]
[1744820538162,7.7818,128.52,128.51,0.05884727]
[1744820538662,7.84046007,128.53,128.51,0.05884727]
[1744820540063,0.05926007,128.53,128.51,7.84084727]
[1744820540269,0.05926007,128.53,128.51,0.05884727]
[1744820540668,0.05926007,128.53,128.51,7.84064727]
[1744820541069,0.05926007,128.53,128.51,0.05884727]
[1744820541270,7.84066007,128.53,128.51,0.05884727]
[1744820541470,31.8,128.52,128.46,31.8]
[1744820541671,7.7839,128.48,128.45,7.7853]
[1744820541870,47.58357929,128.51,128.42,4.1]
[1744820542271,7.7842,128.48,128.45,7.7856]
[1744820542471,31.76,128.48,128.42,4.1]
[1744820542673,31.81862018,128.48,128.45,0.04929394]
[1744820543071,39.60282018,128.48,128.45,7.83469394]
[1744820543774,7.7845,128.47,128.45,0.04929394]
[1744820543974,31.81862018,128.48,128.45,0.04929394]
[1744820544972,7.7851,128.46,128.45,0.04929394]
[1744820545174,31.49091475,128.47,128.4,365.0]
[1744820545366,29.31371475,128.45,128.37,33.867]
[1744820545568,7.7873,128.43,128.39,7.7889]
[1744820545770,31.78,128.44,128.37,33.867]
[1744820545969,39.5664,128.44,128.41,7.7878]
[1744820546270,39.61798238,128.44,128.41,7.83989781]
[1744820547173,39.61798238,128.44,128.41,0.05209781]
[1744820547469,7.7869,128.43,128.41,0.05209781]
[1744820547974,31.83158238,128.44,128.41,0.05209781]
[1744820548176,7.7869,128.43,128.41,0.05209781]
[1744820548377,31.83158238,128.44,128.41,0.05209781]
[1744820549275,39.61788238,128.44,128.41,7.83979781]
[1744820549475,31.83158238,128.44,128.41,0.05209781]
[1744820549875,31.83158238,128.44,128.42,7.7872]
[1744820550576,39.61788238,128.44,128.42,7.7872]
[1744820550771,31.83158238,128.44,128.42,7.7872]
[1744820551083,31.83158238,128.44,128.41,7.83999781]
[1744820551577,39.61818238,128.44,128.41,7.83999781]
[1744820552378,39.61818238,128.44,128.42,7.7873]
[1744820552580,31.83158238,128.44,128.41,0.05209781]
[1744820552981,0.05158238,128.44,128.43,7.7869]
[1744820553181,0.05158238,128.44,128.41,0.05209781]
[1744820553682,7.7872,128.43,128.41,0.05209781]
[1744820553982,7.7872,128.43,128.41,7.84019781]
[1744820554281,7.7875,128.42,128.41,0.05209781]
[1744820555683,29.31371475,128.42,128.36,365.0]
[1744820555887,31.78,128.43,128.34,29.31371475]
[1744820556082,7.7886,128.41,128.34,29.31371475]
[1744820556383,31.78,128.43,128.38,7.7899]
[1744820556582,7.7887,128.41,128.34,31.40821475]
[1744820556786,31.78,128.43,128.36,29.31371475]
[1744820557177,0.05165029,128.41,128.36,29.31371475]
[1744820558079,31.78,128.46,128.38,29.31371475]
[1744820558283,31.78,128.46,128.45,7.7857]
[1744820558479,31.78,128.49,128.4,29.31371475]
[1744820558786,7.786,128.45,128.42,7.7872]
[1744820559382,7.84014239,128.45,128.42,7.84566943]
[1744820559583,0.05414239,128.45,128.42,0.05846943]
[1744820559785,31.83414239,128.45,128.42,0.05846943]
[1744820560282,7.7866,128.44,128.42,0.05846943]
[1744820561082,7.7869,128.43,128.42,0.05846943]
[1744820561382,31.83414239,128.45,128.42,0.05846943]
[1744820561684,39.62014239,128.45,128.42,7.84556943]
[1744820561884,31.83414239,128.45,128.42,0.05846943]
[1744820562185,7.7866,128.44,128.42,0.05846943]
[1744820562886,39.62014239,128.45,128.42,7.84586943]
[1744820563186,31.83414239,128.45,128.42,0.05846943]
[1744820563688,7.7866,128.44,128.42,0.05846943]
[1744820563985,31.83414239,128.45,128.42,0.05846943]
[1744820564186,39.62014239,128.45,128.42,7.84566943]
[1744820564381,31.83414239,128.45,128.42,0.05846943]
[1744820564887,7.7868,128.44,128.42,0.05846943]
[1744820565485,31.83414239,128.45,128.42,0.05846943]
[1744820565689,0.05414239,128.45,128.42,0.05846943]
[1744820566188,31.78,128.48,128.42,2.18816943]
[1744820566390,31.78,128.48,128.42,0.05846943]
[1744820566589,7.7862,128.45,128.42,7.84556943]
[1744820567091,7.83937664,128.45,128.42,7.84556943]
[1744820567290,7.83937664,128.45,128.43,7.7869]
[1744820567486,7.83937664,128.45,128.42,0.05846943]
[1744820567687,7.83937664,128.45,128.43,7.7869]
[1744820567887,0.05317664,128.45,128.42,0.05846943]
[1744820568686,7.7866,128.44,128.42,0.05846943]
[1744820568884,31.78,128.44,128.42,0.05846943]
[1744820569185,7.7869,128.43,128.42,0.05846943]
[1744820571691,37.09371475,128.43,128.33,365.0]
[1744820571892,29.31371475,128.43,128.33,365.0]
[1744820572088,7.7895,128.39,128.36,7.7908]
[1744820572692,7.7895,128.39,128.37,7.7905]
[1744820572883,0.05262983,128.39,128.37,7.7905]
[1744820573083,0.05262983,128.39,128.36,0.04935735]
[1744820573491,7.7902,128.38,128.36,0.04935735]
[1744820573693,0.05262983,128.39,128.36,0.04935735]
[1744820573991,2.11082983,128.39,128.36,0.04935735]
[1744820574391,7.7906,128.37,128.36,0.04935735]
[1744820575396,7.7924,128.34,128.29,403.2163]
[1744820575589,31.76,128.36,128.29,403.2163]
[1744820575791,7.7957,128.29,128.22,365.0]
[1744820575993,31.76,128.28,128.22,367.1964]
[1744820576494,0.05442144,128.26,128.24,7.798]
[1744820576890,0.05442144,128.26,128.23,7.799]
[1744820577294,0.05442144,128.26,128.22,367.1964]
[1744820577691,7.85202144,128.26,128.22,374.996]
[1744820578892,0.05442144,128.26,128.22,365.0]
[1744820579694,7.7982,128.25,128.22,365.0]
[1744820579895,0.05442144,128.26,128.2,7.8005]
[1744820580088,7.85471232,128.24,128.2,7.8005]
[1744820580395,7.85471232,128.24,128.21,7.8002]
[1744820580694,0.05621232,128.24,128.19,31.50901475]
[1744820580996,0.05621232,128.24,128.22,7.7993]
[1744820581298,0.05621232,128.24,128.19,2.1953]
[1744820581589,61.14992707,128.24,128.17,365.0]
[1744820581792,29.31371475,128.2,128.09,365.0]
[1744820582099,0.05529776,128.16,128.14,7.804]
[1744820582493,0.05529776,128.16,128.15,7.8039]
[1744820585001,31.78,128.19,128.18,7.8021]
[1744820585603,31.78,128.19,128.17,7.8025]
[1744820586104,31.83027369,128.19,128.17,7.85786916]
[1744820586705,31.83027369,128.19,128.18,7.8021]
[1744820586904,31.83027369,128.19,128.17,0.05536916]
[1744820587402,7.8021,128.18,128.17,0.05536916]
[1744820588011,7.8034,128.16,128.13,7.8049]
[1744820588209,29.31371475,128.18,128.11,2.0647]
[1744820588407,29.31371475,128.18,128.1,4.3407]
[1744820588608,29.31371475,128.16,128.07,365.0]
[1744820588912,31.8,128.15,128.07,365.0]
[1744820589114,29.31371475,128.18,128.08,29.31371475]
[1744820589314,31.82,128.17,128.1,29.31371475]
[1744820589512,31.82,128.17,128.11,2.0416]
[1744820589712,39.6232,128.17,128.11,2.0416]
[1744820590012,31.82,128.17,128.11,2.0416]
[1744820590514,0.05920285,128.15,128.13,0.05747299]
[1744820591311,0.05920285,128.15,128.14,7.8045]
[1744820591511,0.05920285,128.15,128.13,0.05747299]
[1744820591909,0.05920285,128.15,128.14,7.8045]
[1744820593013,0.05920285,128.15,128.13,0.05747299]
[1744820593412,7.86340285,128.15,128.13,0.05747299]
[1744820593614,0.05920285,128.15,128.13,0.05747299]
[1744820594014,7.8045,128.14,128.13,0.05747299]
[1744820594714,0.05920285,128.15,128.06,367.0013]
[1744820595016,36.0259,128.17,128.06,367.0013]
[1744820595017,61.13371475,128.14,128.06,367.0013]
[1744820595205,29.31371475,128.1,128.0,365.0]
[1744820595410,31.82,128.09,128.01,6.2158]
[1744820595616,39.6281,128.09,128.05,7.8096]
[1744820595813,0.05031914,128.06,128.05,7.8096]
[1744820596012,0.05031914,128.06,128.01,6.2158]
[1744820596218,29.31371475,128.02,127.94,1.35913609]
[1744820596422,0.05395768,127.99,127.94,366.35913609]
[1744820596717,0.05395768,127.99,127.95,29.31371475]
[1744820596916,31.82,128.02,127.95,29.31371475]
[1744820597116,31.41131475,128.08,127.97,29.31371475]
[1744820597308,7.8097,128.06,128.02,7.8115]
[1744820597917,0.05078658,128.05,128.03,0.05929226]
[1744820598716,0.05078658,128.05,128.04,7.8106]
[1744820599015,0.05078658,128.05,128.03,0.05929226]
[1744820599219,7.86088658,128.05,128.03,0.05929226]
[1744820600217,7.8106,128.04,128.03,0.05929226]
[1744820600423,0.05078658,128.05,128.03,0.05929226]
[1744820600617,7.8106,128.04,128.03,0.05929226]
[1744820600822,0.05078658,128.05,127.98,4.162]
[1744820601023,31.84,128.04,127.98,4.162]
[1744820601322,31.84,128.04,127.97,365.0]
[1744820601323,61.15371475,128.04,127.97,365.0]
[1744820602017,7.8139,127.99,127.97,365.0]
[1744820602221,32.71648637,127.99,127.89,365.0]
[1744820602418,32.66,127.99,127.96,7.8151]
[1744820602623,32.71098142,127.99,127.96,7.8151]
[1744820602818,0.05098142,127.99,127.94,29.31371475]
[1744820603020,0.05098142,127.99,127.96,29.31371475]
[1744820603215,0.05098142,127.99,127.97,4.2907]
[1744820603823,0.05098142,127.99,127.93,367.022]
[1744820604024,7.86498142,127.99,127.93,367.022]
[1744820604223,0.05098142,127.99,127.93,367.022]
[1744820604424,0.05098142,127.99,127.93,396.33571475]
[1744820604722,0.05098142,127.99,127.93,367.022]
[1744820605125,0.05098142,127.99,127.96,7.8151]
[1744820605522,0.05098142,127.99,127.93,396.33571475]
[1744820606125,0.05098142,127.99,127.93,367.022]
[1744820606322,0.05098142,127.99,127.96,7.8151]
[1744820606520,0.05098142,127.99,127.93,367.022]
[1744820607623,32.68,127.98,127.93,367.022]
[1744820608025,32.68,127.98,127.93,365.0]
[1744820608227,66.16771475,127.98,127.89,4.3484]
[1744820608427,0.04920154,127.95,127.89,4.3484]
[1744820608629,32.68,127.94,127.87,2.0009]
[1744820608826,0.05483046,127.92,127.87,2.0009]
[1744820609226,7.8191,127.91,127.88,7.8201]
[1744820609427,32.68,127.9,127.87,2.0009]
[1744820609628,32.68,127.9,127.88,7.8204]
[1744820609826,32.68,127.9,127.87,2.0009]
[1744820610227,32.68,127.9,127.85,4.1037]
[1744820610431,0.0544342,127.89,127.82,2.0009]
[1744820610626,0.0544342,127.89,127.86,7.8213]
[1744820610826,32.7544342,127.89,127.83,29.31371475]
[1744820611127,40.5743342,127.89,127.83,29.31371475]
[1744820611331,32.7544342,127.89,127.82,371.1561]
[1744820611525,29.31371475,127.88,127.82,4.1552]
[1744820611728,29.36754686,127.86,127.78,365.0]
[1744820611927,0.05112121,127.83,127.78,365.0]
[1744820612231,0.05112121,127.83,127.82,7.8241]
[1744820613121,32.7,127.88,127.82,394.31371475]
[1744820613326,32.7,127.88,127.83,2.0875]
[1744820614031,0.05400159,127.87,127.84,0.04953112]
[1744820614231,0.05400159,127.87,127.86,7.8215]
[1744820614732,0.05400159,127.87,127.85,7.8219]
[1744820614927,0.05400159,127.87,127.84,29.36324587]
[1744820615122,0.05400159,127.87,127.84,4.22403112]
[1744820615533,32.7,127.86,127.84,0.04953112]
[1744820615730,32.7,127.86,127.85,7.8222]
[1744820615931,0.05400159,127.87,127.84,29.36324587]
[1744820616333,0.05400159,127.87,127.86,7.8216]
[1744820616833,32.7,127.93,127.86,365.0]
[1744820617033,32.7,127.93,127.87,2.1135]
[1744820617230,32.7,127.93,127.89,7.8197]
[1744820617728,7.8187,127.91,127.87,2.1135]
[1744820617924,7.8187,127.91,127.9,0.05480312]
[1744820618130,29.36393517,127.92,127.83,4.201]
[1744820618331,29.31371475,127.9,127.83,4.201]
[1744820618633,34.0,127.89,127.83,4.201]
[1744820618834,34.0,127.89,127.87,7.8209]
[1744820619135,34.05833703,127.89,127.87,7.8710045]
[1744820619432,0.05833703,127.89,127.88,7.8204]
[1744820620533,562.74,127.95,127.87,29.36381925]
[1744820620734,596.76,127.95,127.87,394.31371475]
[1744820620933,7.8171,127.94,127.91,7.8185]
[1744820621235,596.76,127.95,127.87,394.31371475]
[1744820621534,7.8174,127.93,127.9,7.8186]
[1744820621736,0.05579997,127.92,127.9,0.05352833]
[1744820622336,34.02,127.91,127.9,0.05352833]
[1744820622532,34.02,127.91,127.83,369.201]
[1744820622737,63.33371475,127.91,127.85,7.8217]
[1744820622938,34.02,127.91,127.83,369.201]
[1744820623137,34.02,127.9,127.86,7.8212]
[1744820623437,34.02,127.9,127.85,29.31371475]
[1744820623639,562.74,127.95,127.87,29.31371475]
[1744820623838,596.76,127.95,127.87,394.31371475]
[1744820624139,604.5764,127.95,127.92,7.8177]
[1744820624838,604.63458579,127.95,127.92,7.87265398]
[1744820625840,596.81818579,127.95,127.92,0.05495398]
[1744820626837,626.13190054,127.95,127.92,0.05495398]
[1744820627042,596.81818579,127.95,127.92,0.05495398]
[1744820627341,596.81818579,127.95,127.92,7.87255398]
[1744820627540,596.81818579,127.95,127.92,0.05495398]
[1744820627739,596.81818579,127.95,127.92,7.87255398]
[1744820627941,604.63458579,127.95,127.92,7.87255398]
[1744820628439,596.81818579,127.95,127.92,0.05495398]
[1744820628743,34.02,128.0,127.93,29.31371475]
[1744820628936,34.02,128.0,127.99,7.8137]
[1744820629637,604.7115,128.03,127.99,7.8137]
[1744820629840,0.05122675,128.01,127.99,7.8137]
[1744820630544,0.05122675,128.01,127.98,0.05560144]
[1744820631131,7.86402675,128.01,127.98,0.05560144]
[1744820631339,0.05122675,128.01,127.98,0.05560144]
[1744820631732,0.05122675,128.01,127.98,7.86960144]
[1744820631937,0.05122675,128.01,127.98,0.05560144]
[1744820632944,7.8131,128.0,127.98,0.05560144]
[1744820633139,0.05122675,128.01,127.98,0.05560144]
[1744820633539,41.8135,128.0,127.98,0.05560144]
[1744820633739,34.0,128.0,127.98,0.05560144]
[1744820634138,0.05122675,128.01,127.98,0.05560144]
[1744820634641,0.05122675,128.01,127.98,2.14550144]
[1744820634841,0.05122675,128.01,128.0,7.8131]
[1744820635438,34.0,128.05,128.03,7.8108]
[1744820635639,34.0,128.05,127.99,31.42971475]
[1744820635839,34.0,128.05,127.99,396.42971475]
[1744820636239,34.0,128.08,127.99,396.42971475]
[1744820636441,0.05522575,128.05,128.02,0.05280517]
[1744820636642,0.05522575,128.05,128.02,2.13930517]
[1744820637138,0.05522575,128.05,128.04,7.8106]
[1744820637539,0.05522575,128.05,128.02,2.13930517]
[1744820637741,0.05522575,128.05,128.03,7.8109]
[1744820638041,0.05522575,128.05,128.02,2.13930517]
[1744820638240,0.05522575,128.05,128.03,7.8112]
[1744820638440,0.05522575,128.05,128.02,0.05280517]
[1744820639147,34.0,128.04,128.02,0.05280517]
[1744820639443,7.8112,128.03,128.02,0.05280517]
[1744820639844,41.8108,128.04,128.02,0.05280517]
[1744820640245,0.05522575,128.05,128.02,0.05280517]
[1744820640445,0.05522575,128.05,128.04,7.8106]
[1744820641345,4.1305,128.12,128.02,29.36651992]
[1744820641541,34.0,128.11,128.02,394.31371475]
[1744820642449,0.05906659,128.08,128.05,0.05595588]
[1744820642944,34.0,128.07,128.05,0.05595588]
[1744820643144,7.8094,128.06,128.05,0.05595588]
[1744820643336,34.0,128.07,128.05,0.05595588]
[1744820643539,41.8088,128.07,128.05,0.05595588]
[1744820643742,34.0,128.07,128.05,0.05595588]
[1744820644143,34.0,128.07,128.06,7.8094]
[1744820644844,0.05906659,128.08,128.07,7.8088]
[1744820646649,0.05906659,128.08,128.05,0.05595588]
[1744820646650,0.05906659,128.08,128.06,7.8092]
[1744820646943,0.05906659,128.08,128.05,0.05595588]
[1744820647135,0.05906659,128.08,128.07,7.8088]
[1744820649048,0.05906659,128.08,128.05,0.05595588]
[1744820650047,7.8093,128.07,128.05,0.05595588]
[1744820650346,0.05906659,128.08,128.05,0.05595588]
[1744820650548,0.05906659,128.08,128.06,7.809]
[1744820650750,0.05906659,128.08,128.05,0.05595588]
[1744820651250,0.05906659,128.08,128.07,7.8088]
[1744820651850,0.05906659,128.08,128.05,0.05595588]
[1744820652144,6.659e-05,128.08,128.06,29.31371475]
[1744820652351,34.16,128.13,128.12,7.8058]
[1744820652551,34.16,128.16,128.09,29.31371475]
[1744820652752,34.16,128.16,128.11,29.31371475]
[1744820653048,34.16,128.16,128.14,7.804]
[1744820653249,34.16,128.16,128.11,29.31371475]
[1744820653449,0.05804693,128.16,128.14,0.05549912]
[1744820653644,596.44,128.21,128.15,29.31371475]
[1744820653845,596.44,128.21,128.14,0.05549912]
[1744820653846,4.0155,128.24,128.17,29.31371475]
[1744820654050,34.16,128.24,128.17,29.31371475]
[1744820654752,0.0511686,128.22,128.19,0.05946546]
[1744820655350,0.0511686,128.22,128.21,7.8003]
[1744820655746,48.1704,128.27,128.23,7.7987]
[1744820655943,40.3734,128.27,128.19,29.31371475]
[1744820656348,40.3734,128.27,128.2,7.8008]
[1744820656550,69.68711475,128.27,128.18,6.3564]
[1744820656752,0.0542056,128.24,128.21,0.05228147]
[1744820657856,7.7992,128.23,128.21,0.05228147]
[1744820658054,0.0542056,128.24,128.21,7.85248147]
[1744820658249,0.0542056,128.24,128.21,0.05228147]
[1744820658450,7.8531056,128.24,128.21,0.05228147]
[1744820658652,0.0542056,128.24,128.21,0.05228147]
[1744820659455,7.8531056,128.24,128.21,0.05228147]
[1744820659853,0.0542056,128.24,128.21,0.05228147]
[1744820660154,7.7995,128.23,128.21,0.05228147]
[1744820660352,0.0542056,128.24,128.21,0.05228147]
[1744820660546,34.14,128.23,128.21,0.05228147]
[1744820661649,7.7997,128.22,128.21,0.05228147]
[1744820662854,7.8016,128.19,128.17,365.0]
[1744820663054,7.8016,128.19,128.16,7.803]
[1744820663251,7.8022,128.18,128.14,34.14]
[1744820663449,7.8022,128.18,128.15,7.8036]
[1744820663656,34.14,128.19,128.12,371.0743]
[1744820663851,0.0504448,128.16,128.14,0.05874673]
[1744820664056,0.0559092,128.16,128.14,0.05874673]
[1744820664456,7.8598092,128.16,128.14,0.05874673]
[1744820664849,0.0559092,128.16,128.14,0.05874673]
[1744820665055,7.8039,128.15,128.14,0.05874673]
[1744820668759,7.8595092,128.16,128.14,0.05874673]
[1744820669255,0.0559092,128.16,128.14,7.86314673]
[1744820670259,7.8593092,128.16,128.14,0.05874673]
[1744820671162,7.8593092,128.16,128.14,7.86324673]
[1744820671359,0.0559092,128.16,128.14,0.05874673]
[1744820671966,34.14,128.22,128.14,47.86869645]
[1744820672165,34.14,128.22,128.14,47.80994972]
[1744820672463,34.14,128.22,128.14,54.24864972]
[1744820672855,7.8047,128.14,128.08,365.0]
[1744820673055,34.14,128.15,128.08,365.0]
[1744820673260,34.14,128.14,128.08,365.0]
[1744820673456,7.8055,128.13,128.09,7.8073]
[1744820673661,34.14,128.14,128.08,365.0]
[1744820674065,0.05879182,128.12,128.1,7.86432033]
[1744820675774,0.05879182,128.12,128.11,7.8064]
[1744820675967,0.05879182,128.12,128.1,0.05762033]
[1744820676975,7.8064,128.11,128.1,0.05762033]
[1744820677677,0.05879182,128.12,128.1,0.05762033]
[1744820678476,7.86489182,128.12,128.1,0.05762033]
[1744820680177,7.8064,128.11,128.1,0.05762033]
[1744820681673,0.05879182,128.12,128.1,0.05762033]
[1744820682179,0.05879182,128.12,128.1,7.86432033]
[1744820682377,0.05879182,128.12,128.1,0.05762033]
[1744820682779,0.05879182,128.12,128.1,7.86422033]
[1744820683679,0.05879182,128.12,128.11,7.8064]
[1744820684678,0.05879182,128.12,128.1,0.05762033]
[1744820685178,0.05879182,128.12,128.1,7.86422033]
[1744820685879,0.05879182,128.12,128.1,0.05762033]
[1744820686679,7.86479182,128.12,128.1,0.05762033]
[1744820686879,0.05879182,128.12,128.1,0.05762033]
[1744820687079,7.86489182,128.12,128.1,0.05762033]
[1744820687481,0.05879182,128.12,128.1,0.05762033]
[1744820688182,0.05879182,128.12,128.11,7.8064]
[1744820689880,0.05879182,128.12,128.1,0.05762033]
[1744820690486,0.05879182,128.12,128.11,7.8064]
[1744820692485,33.32,128.17,128.14,7.8044]
[1744820692681,33.32,128.17,128.07,398.32]
[1744820692885,7.8037,128.16,128.07,398.32]
[1744820693486,0.05892565,128.13,128.1,0.05479544]
[1744820693985,0.05892565,128.13,128.12,7.8058]
[1744820694188,0.05892565,128.13,128.1,0.05479544]
[1744820694482,33.37892565,128.13,128.1,0.05479544]
[1744820695184,7.8061,128.12,128.1,0.05479544]
[1744820696287,7.8064,128.11,128.1,0.05479544]
[1744820696989,7.806,128.12,128.1,0.05479544]
[1744820697487,7.8063,128.12,128.1,0.05479544]
[1744820697687,33.37892565,128.13,128.1,0.05479544]
[1744820698190,41.18462565,128.13,128.1,7.86139544]
[1744820698389,33.37892565,128.13,128.1,0.05479544]
[1744820698684,33.37892565,128.13,128.11,7.8061]
[1744820698891,33.37892565,128.13,128.1,0.05479544]
[1744820699286,33.37892565,128.13,128.12,7.8058]
[1744820699787,33.37892565,128.13,128.1,0.05479544]
[1744820699991,7.8061,128.12,128.1,0.05479544]
[1744820700191,33.37892565,128.13,128.1,0.05479544]
[1744820700390,7.8064,128.11,128.1,0.05479544]
[1744820700892,7.8076,128.09,128.06,7.8091]
[1744820701186,33.32,128.11,128.03,29.47323409]
[1744820701393,7.807,128.1,128.07,7.8084]
[1744820701691,33.32,128.11,128.03,29.47323409]
[1744820701992,33.32,128.11,128.08,7.8079]
[1744820701993,41.1267,128.11,128.08,7.8079]
[1744820702291,41.1267,128.11,128.07,29.47323409]
[1744820702292,0.055619,128.11,128.07,29.47323409]
[1744820702488,33.32,128.19,128.1,29.47323409]
[1744820702690,33.32,128.19,128.13,29.47323409]
[1744820703493,0.05434666,128.17,128.15,0.05445386]
[1744820704293,0.05434666,128.17,128.16,7.8033]
[1744820706089,0.05434666,128.17,128.15,0.05445386]
[1744820706288,7.85724666,128.17,128.15,0.05445386]
[1744820707194,0.05434666,128.17,128.15,0.05445386]
[1744820707690,0.05434666,128.17,128.16,7.8033]
[1744820707894,33.32,128.22,128.15,29.52768795]
[1744820708291,33.32,128.22,128.15,394.52768795]
[1744820708595,4.1892,128.27,128.17,29.47323409]
[1744820708787,0.05635846,128.23,128.21,7.7999]
[1744820709096,0.05635846,128.23,128.2,0.05876152]
[1744820709298,0.05635846,128.23,128.2,2.13016152]
[1744820709496,0.05635846,128.23,128.22,7.7997]
[1744820709695,32.46,128.26,128.2,2.13016152]
[1744820709991,40.2573,128.26,128.2,2.13016152]
[1744820710698,0.05005919,128.24,128.2,2.13016152]
[1744820711495,32.46,128.26,128.21,29.47323409]
[1744820711702,32.46,128.29,128.23,29.47323409]
[1744820711900,602.1339,128.32,128.28,7.7956]
[1744820712200,32.46,128.35,128.27,29.47323409]
[1744820712391,40.2521,128.35,128.31,7.7937]
[1744820712596,0.0542816,128.34,128.32,0.05852072]
[1744820712997,0.0542816,128.34,128.33,7.793]
[1744820713199,32.46,128.38,128.33,29.47323409]
[1744820713399,32.46,128.38,128.32,0.05852072]
[1744820713597,7.7915,128.36,128.32,7.85182072]
[1744820714298,0.05522494,128.35,128.32,7.85182072]
[1744820714691,0.05522494,128.35,128.32,0.05852072]
[1744820715094,0.05522494,128.35,128.33,7.7926]
[1744820715399,0.05522494,128.35,128.32,0.05852072]
[1744820717407,0.05522494,128.35,128.34,7.7924]
[1744820717602,32.44,128.41,128.33,29.47323409]
[1744820717807,32.44,128.41,128.34,34.6117]
[1744820718100,32.44,128.41,128.35,29.47323409]
[1744820718305,32.44,128.41,128.35,31.49823409]
[1744820718807,0.04919007,128.39,128.37,0.05843059]
[1744820719304,0.04919007,128.39,128.38,7.7895]
[1744820720111,0.04919007,128.39,128.37,7.84873059]
[1744820720310,0.04919007,128.39,128.37,0.05843059]
[1744820720810,0.04919007,128.39,128.37,7.84873059]
[1744820721112,0.04919007,128.39,128.37,0.05843059]
[1744820721811,0.04919007,128.39,128.38,7.7899]
[1744820722108,0.04919007,128.39,128.37,0.05843059]
[1744820722912,0.04919007,128.39,128.38,7.7899]
[1744820723211,32.42,128.44,128.37,29.53166468]
[1744820723811,40.2067,128.44,128.4,7.7881]
[1744820724011,32.42,128.44,128.37,29.47323409]
[1744820724212,32.42,128.44,128.39,0.05350581]
[1744820724408,40.2063,128.44,128.39,0.05350581]
[1744820724609,32.42,128.47,128.41,29.47323409]
[1744820724808,32.42,128.47,128.45,7.7857]
[1744820725614,7.7838,128.49,128.46,7.785]
[1744820725810,593.6,128.5,128.46,7.84490642]
[1744820726008,593.6,128.5,128.46,0.05990642]
[1744820726610,7.7845,128.47,128.46,0.05990642]
[1744820727409,7.7865,128.44,128.39,397.42]
[1744820727613,32.4,128.45,128.37,2.0221]
[1744820727914,29.47323409,128.4,128.32,34.5932]
[1744820728109,32.4,128.39,128.29,2.1369]
[1744820728309,0.05003288,128.35,128.33,7.84886196]
[1744820728508,0.05003288,128.35,128.33,0.05626196]
[1744820729213,0.05003288,128.35,128.34,7.7924]
[1744820732419,3.288e-05,128.35,128.34,7.7924]
[1744820732615,3.288e-05,128.35,128.34,37.26563409]
[1744820733118,3.288e-05,128.35,128.34,7.7924]
[1744820734918,3.288e-05,128.35,128.33,0.05626196]
[1744820735222,7.794,128.32,128.26,2.0339]
[1744820735417,7.794,128.32,128.28,7.7955]
[1744820735621,7.794,128.32,128.26,2.0339]
[1744820736017,7.7946,128.31,128.26,2.0339]
[1744820736221,0.05698201,128.3,128.28,0.04932687]
[1744820737122,0.05698201,128.3,128.29,7.7954]
[1744820737518,0.05698201,128.3,128.28,0.04932687]
[1744820737922,32.47698201,128.3,128.28,0.04932687]
[1744820738119,32.47698201,128.3,128.28,7.84502687]
[1744820738825,32.47698201,128.3,128.28,0.04932687]
[1744820739423,40.27228201,128.3,128.28,0.04932687]
[1744820739622,32.47698201,128.3,128.28,0.04932687]
[1744820740124,40.27238201,128.3,128.28,0.04932687]
[1744820740416,32.47698201,128.3,128.28,0.04932687]
[1744820740724,7.7954,128.29,128.28,0.04932687]
[1744820742523,0.05698201,128.3,128.28,0.04932687]
[1744820743725,0.05698201,128.3,128.29,7.7954]
[1744820745134,4.1689,128.36,128.29,61.87323409]
[1744820745329,32.4,128.37,128.31,29.47323409]
[1744820745634,32.4,128.39,128.37,7.7905]
[1744820746027,32.4,128.39,128.33,61.87323409]
[1744820746223,32.4,128.39,128.35,0.04993503]
[1744820747232,36.5329,128.42,128.35,29.52316912]
[1744820747628,32.4,128.42,128.37,29.47323409]
[1744820747831,32.4,128.45,128.38,0.05105921]
[1744820748027,32.4,128.45,128.4,0.05143829]